bitfinex/quotes_ETHUSD_20250517
["timestamp","ask_amount","ask_price","bid_price","bid_amount"]
[1747460148353,4.01397277,2491.3,2491.0,10.36257]
[1747460148683,4.01401604,2491.3,2491.0,10.36257]
[1747460149062,4.01389003,2491.4,2491.1,0.38463457]
[1747460149251,4.01399455,2491.3,2491.1,0.38463457]
[1747460149649,4.01412973,2491.2,2491.1,0.38463457]
[1747460150994,4.01412973,2491.2,2491.1,8.15463457]
[1747460152272,4.01412973,2491.2,2491.1,0.38463457]
[1747460152477,4.01412973,2491.2,2491.1,8.15363457]
[1747460152877,4.01404841,2491.3,2491.1,8.15363457]
[1747460153070,4.01393369,2491.4,2491.1,0.38463457]
[1747460153269,4.01393369,2491.4,2490.9,22.64937204]
[1747460153270,4.01396861,2491.3,2491.2,8.15363457]
[1747460154285,11.78169726,2491.5,2491.2,8.15363457]
[1747460155185,4.01396861,2491.3,2491.2,8.15363457]
[1747460156303,5.67781102,2491.3,2491.2,8.15363457]
[1747460156782,6.50791102,2491.3,2491.2,8.15363457]
[1747460157189,6.50791102,2491.3,2491.2,0.38463457]
[1747460157387,4.01431898,2491.1,2490.7,8.24815126]
[1747460157571,3.08672006,2491.3,2490.7,8.24815126]
[1747460157572,4.01477436,2490.8,2490.7,8.24815126]
[1747460158392,4.01477436,2490.8,2490.7,8.63270516]
[1747460158898,4.01466121,2490.9,2490.7,8.63270516]
[1747460159189,11.78054503,2491.0,2490.7,9.63530398]
[1747460159190,7.766,2491.0,2490.7,9.63530398]
[1747460159391,11.78045287,2491.0,2490.7,9.63530398]
[1747460159591,7.766,2491.0,2490.7,9.63530398]
[1747460159901,7.766,2491.1,2490.7,13.65022354]
[1747460160208,7.766,2491.1,2490.8,0.3845539]
[1747460160412,7.766,2491.4,2491.0,4.01435943]
[1747460160590,11.7798911,2491.4,2490.9,4.76943349]
[1747460160891,11.7798911,2491.4,2491.0,0.3845539]
[1747460162287,4.01402379,2491.3,2491.1,0.3845539]
[1747460162480,4.01402379,2491.3,2491.2,7.769]
[1747460164088,4.01402379,2491.3,2491.2,8.1535539]
[1747460165091,4.01402379,2491.3,2491.2,0.3845539]
[1747460165293,4.01402379,2491.3,2491.2,8.1535539]
[1747460166490,4.01402379,2491.3,2491.2,0.3845539]
[1747460166804,4.01402379,2491.3,2491.2,8.1535539]
[1747460167096,1.080007,2491.7,2491.2,8.1535539]
[1747460167097,11.77683032,2492.1,2491.4,0.8253]
[1747460167390,7.764,2492.1,2491.5,4.01352484]
[1747460167759,0.7692,2492.4,2491.5,0.55]
[1747460167967,11.77643848,2492.3,2491.8,4.83837406]
[1747460168189,11.77643848,2492.3,2491.9,7.769]
[1747460168389,4.01259322,2492.2,2491.9,7.769]
[1747460168862,11.77659322,2492.2,2491.9,7.769]
[1747460169185,7.764,2492.2,2492.0,0.3845539]
[1747460170297,4.01252185,2492.2,2492.0,0.3845539]
[1747460170509,4.01268006,2492.1,2492.0,0.3845539]
[1747460170708,4.01330054,2491.8,2491.2,15.21564958]
[1747460170868,4.01278366,2492.1,2491.4,4.01369161]
[1747460171063,4.01300515,2491.9,2491.5,7.768]
[1747460171305,4.01293316,2492.0,2491.5,4.01363445]
[1747460171464,4.01293316,2492.0,2491.6,7.768]
[1747460171660,4.01240739,2492.3,2491.6,11.78144992]
[1747460171865,0.7692,2492.5,2491.8,4.01303707]
[1747460172065,11.77529125,2492.4,2491.8,4.01303707]
[1747460172363,4.01236877,2492.3,2491.8,4.01309185]
[1747460173286,4.0120828,2492.5,2492.0,4.01281369]
[1747460173464,7.763,2492.4,2492.1,7.762]
[1747460173666,7.763,2492.4,2492.1,11.77464752]
[1747460173876,7.762,2492.5,2492.2,4.8326051]
[1747460174368,7.762,2492.5,2492.2,0.8201]
[1747460174566,7.762,2492.6,2492.2,4.83261902]
[1747460174788,0.7783,2493.1,2492.1,25.095]
[1747460175015,8.89694832,2493.0,2492.4,0.7578]
[1747460175164,4.01220257,2492.4,2492.2,0.7578]
[1747460175368,4.01220257,2492.4,2492.3,7.762]
[1747460175588,4.0121201,2492.5,2492.3,7.762]
[1747460176167,4.01219707,2492.4,2492.3,7.762]
[1747460176363,4.81460584,2492.4,2492.3,7.762]
[1747460176562,4.01219707,2492.4,2492.3,7.762]
[1747460176959,4.01219707,2492.4,2492.1,17.333]
[1747460177165,4.01219707,2492.4,2492.3,7.761]
[1747460179500,4.01219707,2492.4,2492.1,17.333]
[1747460179703,4.01251905,2492.2,2492.1,17.333]
[1747460179902,4.01284109,2492.0,2491.9,7.761]
[1747460180201,4.01320561,2491.8,2491.4,18.73978303]
[1747460180383,4.01320561,2491.8,2491.5,7.761]
[1747460181019,4.01334939,2491.7,2491.5,7.761]
[1747460181177,4.01348531,2491.6,2491.5,7.761]
[1747460182076,4.01364639,2491.5,2491.4,17.33]
[1747460182276,11.77364639,2491.5,2491.4,25.091]
[1747460182509,11.77364639,2491.5,2491.0,0.7902]
[1747460182510,4.01429087,2491.1,2490.9,0.63838303]
[1747460182712,4.01427995,2491.2,2491.0,7.761]
[1747460183474,4.01429087,2491.1,2491.0,7.761]
[1747460183902,4.014162,2491.2,2491.0,7.761]
[1747460184806,1.65486317,2491.4,2491.0,7.761]
[1747460185007,4.01376074,2491.5,2491.0,7.761]
[1747460185209,7.759,2491.6,2491.1,0.7902]
[1747460185411,7.759,2491.6,2491.2,4.01412791]
[1747460185608,7.759,2491.6,2491.1,0.7902]
[1747460185609,7.759,2491.6,2491.1,4.80441452]
[1747460185811,7.75382063,2491.6,2491.2,4.01410548]
[1747460186002,7.75382063,2491.6,2491.2,4.01412973]
[1747460186210,7.75382063,2491.6,2491.1,4.80444505]
[1747460186500,0.7615,2491.5,2491.2,7.762]
[1747460186814,4.0140575,2491.3,2491.2,7.762]
[1747460188802,0.7615,2491.5,2491.2,7.762]
[1747460188981,4.77522783,2491.5,2491.2,7.762]
[1747460189384,7.76,2491.4,2491.2,7.762]
[1747460191420,4.01364903,2491.5,2491.2,7.762]
[1747460191585,11.77364903,2491.5,2491.2,7.762]
[1747460192120,4.01364903,2491.5,2491.2,7.762]
[1747460192320,4.0138507,2491.4,2491.2,7.762]
[1747460193218,4.01396861,2491.3,2491.2,7.762]
[1747460193404,2.44637764,2491.4,2491.0,7.762]
[1747460193614,4.01429087,2491.1,2491.0,7.762]
[1747460196227,4.01423958,2491.2,2491.0,7.762]
[1747460197320,4.01429087,2491.1,2491.0,7.762]
[1747460198709,4.01421038,2491.2,2491.0,7.762]
[1747460198915,5.06166965,2491.2,2491.0,7.762]
[1747460199632,4.01429087,2491.1,2491.0,7.762]
[1747460202288,4.01429087,2491.1,2490.7,17.331]
[1747460202494,5.06159782,2491.2,2490.7,17.331]
[1747460202495,4.01477436,2490.8,2490.7,17.331]
[1747460202693,4.01477436,2490.8,2490.7,25.094]
[1747460202919,4.01469608,2490.9,2490.7,25.094]
[1747460204036,4.01469608,2490.9,2490.7,17.331]
[1747460204213,5.67092685,2490.9,2490.8,7.759]
[1747460204708,4.00762571,2490.8,2490.7,17.331]
[1747460204904,4.00762571,2490.8,2490.7,25.09]
[1747460206248,4.00762571,2490.8,2490.7,17.331]
[1747460206410,4.00762571,2490.8,2490.7,25.091]
[1747460206740,5.82879097,2490.8,2490.7,25.091]
[1747460207240,4.01558045,2490.3,2490.2,7.76]
[1747460207536,12.58738045,2490.3,2490.2,7.76]
[1747460209810,8.5718,2490.3,2490.1,7.76]
[1747460210008,4.8729217,2490.2,2490.1,7.76]
[1747460211845,4.01605152,2490.1,2490.0,7.761]
[1747460212940,0.8018,2490.6,2490.0,7.761]
[1747460213147,4.0156704,2490.3,2490.0,8.5295]
[1747460213642,5.15003476,2490.7,2490.0,8.5295]
[1747460213643,4.01486231,2490.8,2490.3,4.01557433]
[1747460213849,4.01486231,2490.8,2490.4,0.7685]
[1747460214036,4.01486231,2490.8,2490.5,7.761]
[1747460215345,4.01496327,2490.7,2490.5,7.761]
[1747460215846,4.01483783,2490.8,2490.5,7.761]
[1747460216231,11.77369619,2490.9,2490.5,7.761]
[1747460216438,13.46277786,2490.9,2490.5,7.761]
[1747460216849,4.01479478,2490.8,2490.5,7.761]
[1747460217449,7.759,2490.9,2490.5,11.81636973]
[1747460217658,7.759,2490.9,2490.5,11.77622068]
[1747460217950,7.758,2491.0,2490.7,0.7685]
[1747460218137,5.12140481,2491.3,2490.7,0.80864434]
[1747460218138,4.81583394,2491.3,2490.7,0.80864434]
[1747460218341,1.13494832,2491.8,2490.8,4.01465124]
[1747460218539,0.8018,2491.3,2490.7,0.7685]
[1747460218854,7.758,2491.2,2490.9,7.761]
[1747460219054,4.01447444,2491.0,2490.7,0.7685]
[1747460219254,4.01447444,2491.0,2490.8,7.761]
[1747460219956,4.01437402,2491.1,2490.8,7.761]
[1747460220259,4.0145303,2491.0,2490.8,7.761]
[1747460220558,4.0145303,2491.0,2490.7,0.7685]
[1747460220867,4.01461319,2490.9,2490.8,7.761]
[1747460221028,4.81641319,2490.9,2490.8,7.761]
[1747460222155,4.0154192,2490.4,2489.9,0.63838303]
[1747460222347,4.01590297,2490.1,2490.0,7.761]
[1747460222546,4.01606425,2490.0,2489.9,0.63838303]
[1747460222749,4.01606425,2490.0,2489.9,8.39938303]
[1747460223121,4.01606425,2490.0,2489.9,0.63838303]
[1747460223327,6.03104929,2490.0,2489.9,0.63838303]
[1747460223769,6.02410877,2490.0,2489.9,0.63838303]
[1747460225265,4.88916045,2490.0,2489.9,0.63838303]
[1747460225472,4.01654817,2489.7,2489.6,7.761]
[1747460225761,11.77454817,2489.7,2489.6,7.761]
[1747460226162,11.77313468,2490.0,2489.6,7.761]
[1747460226466,4.01576967,2490.2,2489.7,0.8255]
[1747460226640,7.757,2490.0,2489.7,0.8255]
[1747460226821,0.7684,2490.5,2489.8,4.0163315]
[1747460227025,4.78372345,2490.5,2489.9,4.01610596]
[1747460227251,7.757,2490.4,2490.0,4.0159478]
[1747460227421,4.01494538,2490.7,2490.1,12.58779872]
[1747460227640,7.757,2490.6,2490.1,12.58779872]
[1747460228163,11.77210186,2490.6,2490.1,8.572]
[1747460228327,11.77210186,2490.6,2490.1,10.32099858]
[1747460228523,4.01603635,2490.1,2489.8,18.153]
[1747460228837,4.01617618,2490.0,2489.9,8.14508656]
[1747460229243,11.77394394,2490.1,2489.9,8.14508656]
[1747460229442,7.758,2490.1,2489.9,8.14508656]
[1747460229646,7.758,2490.2,2490.0,0.81]
[1747460230160,11.77362429,2490.3,2490.0,0.81]
[1747460231359,4.01579165,2490.2,2490.0,0.81]
[1747460231562,7.758,2490.3,2489.8,17.343]
[1747460231872,4.01622555,2489.9,2489.8,17.343]
[1747460232233,4.01622555,2489.9,2489.8,25.106]
[1747460234166,4.01613865,2490.0,2489.8,25.101]
[1747460234366,7.758,2490.0,2489.8,25.101]
[1747460234572,7.758,2490.1,2489.9,0.817]
[1747460235933,11.7740061,2490.1,2489.9,0.817]
[1747460236370,11.7740061,2490.1,2490.0,7.758]
[1747460236738,11.7740061,2490.1,2489.9,0.817]
[1747460236934,11.7740061,2490.1,2490.0,7.758]
[1747460237567,7.758,2490.1,2490.0,7.758]
[1747460238859,11.77390297,2490.1,2490.0,7.758]
[1747460239938,11.77390297,2490.1,2489.9,0.817]
[1747460240140,4.01622555,2489.9,2489.8,25.101]
[1747460241061,7.758,2490.1,2489.8,25.101]
[1747460241248,7.757,2490.1,2489.8,25.101]
[1747460241454,4.016186,2490.0,2489.8,25.101]
[1747460241646,4.016186,2490.0,2489.9,7.758]
[1747460241647,4.01606425,2490.0,2489.9,7.758]
[1747460242357,4.01622555,2489.9,2489.8,17.343]
[1747460242552,4.01622555,2489.9,2489.8,25.101]
[1747460242758,11.77296795,2490.1,2489.8,25.101]
[1747460242962,4.01622555,2489.9,2489.8,25.101]
[1747460243341,4.01622555,2489.9,2489.8,17.343]
[1747460243535,4.01622555,2489.9,2489.8,25.101]
[1747460244273,8.5435,2490.1,2489.4,0.4791863]
[1747460244274,4.01687085,2489.5,2489.4,0.4791863]
[1747460244568,0.7816,2489.9,2489.4,7.758]
[1747460244873,2.43546,2489.9,2489.4,7.758]
[1747460245049,4.01684531,2489.6,2489.4,7.758]
[1747460245255,11.77284531,2489.6,2489.2,0.4791863]
[1747460245454,11.77284531,2489.6,2489.3,7.758]
[1747460245786,11.77284531,2489.6,2489.4,7.758]
[1747460245969,11.77284531,2489.6,2489.2,0.4791863]
[1747460246264,11.77284531,2489.6,2489.3,7.758]
[1747460247877,7.756,2489.6,2489.3,11.77514454]
[1747460248079,7.756,2489.7,2489.3,14.76707579]
[1747460248282,11.77255231,2489.7,2489.3,10.74993125]
[1747460248581,7.756,2489.7,2489.4,0.7533]
[1747460249955,4.01579606,2490.2,2489.4,5.53819282]
[1747460250185,7.756,2489.9,2489.5,4.40091236]
[1747460250967,4.01606577,2490.0,2489.5,4.40091236]
[1747460251171,7.756,2490.0,2489.6,4.01665118]
[1747460251373,11.77208281,2490.0,2489.5,4.40091969]
[1747460251784,11.77208281,2490.0,2489.6,0.38412936]
[1747460253795,11.77208281,2490.0,2489.7,0.38412936]
[1747460254081,11.77208281,2490.0,2489.8,7.758]
[1747460254782,4.01622555,2489.9,2489.8,7.758]
[1747460254983,4.01622555,2489.9,2489.8,8.14212936]
[1747460255285,5.59505737,2489.9,2489.8,8.14212936]
[1747460255783,4.01622555,2489.9,2489.8,8.14212936]
[1747460255982,11.77213264,2490.0,2489.8,8.14212936]
[1747460256180,4.01622555,2489.9,2489.8,8.14212936]
[1747460256550,4.01622555,2489.9,2489.4,4.77025338]
[1747460256884,4.01622555,2489.9,2489.5,7.758]
[1747460257286,4.01622555,2489.9,2489.5,9.05874397]
[1747460257576,4.01622555,2489.9,2489.6,0.38443682]
[1747460258282,7.756,2490.0,2489.6,4.40113977]
[1747460258485,7.756,2490.0,2489.6,0.38443682]
[1747460258486,11.77213802,2490.0,2489.6,0.38443682]
[1747460258691,7.75174531,2490.0,2489.6,5.82247212]
[1747460258861,11.76784135,2490.0,2489.6,1.80577587]
[1747460259058,7.75174531,2490.0,2489.6,5.82246619]
[1747460259287,11.76781244,2490.0,2489.7,0.38443682]
[1747460259656,7.75174531,2490.0,2489.7,0.38443682]
[1747460260762,11.76784221,2490.0,2489.7,0.38443682]
[1747460260967,4.01638685,2489.8,2489.5,8.2371863]
[1747460261292,4.01630861,2489.9,2489.5,9.601783]
[1747460261588,11.76783622,2490.0,2489.5,0.4791863]
[1747460261589,4.00943278,2489.6,2489.5,0.4791863]
[1747460261759,4.78186008,2489.8,2489.6,7.758]
[1747460264558,4.01646008,2489.8,2489.6,7.758]
[1747460265090,4.01654817,2489.7,2489.6,7.758]
[1747460265491,4.016868,2489.6,2489.3,0.4791863]
[1747460265690,4.01700036,2489.5,2489.3,0.4791863]
[1747460265987,4.01700036,2489.5,2489.4,7.754]
[1747460266186,4.01681297,2489.6,2489.4,7.754]
[1747460266491,4.01687085,2489.5,2489.4,7.754]
[1747460266690,13.41022131,2489.5,2489.4,0.38470977]
[1747460267879,21.41022131,2489.5,2489.4,0.38470977]
[1747460268080,21.71578143,2489.5,2489.4,0.38470977]
[1747460268469,12.01735497,2489.2,2489.1,0.4791863]
[1747460268812,14.45208233,2489.2,2489.1,0.4791863]
[1747460270102,14.45208233,2489.2,2488.8,7.755]
[1747460270103,4.0178392,2488.9,2488.8,7.755]
[1747460270310,4.01831736,2488.7,2488.6,7.755]
[1747460271368,4.77375612,2488.8,2488.6,7.755]
[1747460271798,4.01816209,2488.7,2488.3,17.351]
[1747460272001,4.77370381,2488.8,2488.4,7.755]
[1747460272212,0.7557,2488.8,2488.4,7.755]
[1747460272394,4.01816209,2488.7,2488.4,7.755]
[1747460272594,0.7557,2488.8,2488.4,7.755]
[1747460272793,4.77377566,2488.8,2488.4,7.755]
[1747460273308,4.01807566,2488.8,2488.4,9.25017283]
[1747460273693,4.01835355,2488.6,2488.4,9.25017283]
[1747460274004,4.01823489,2488.7,2488.4,9.25017283]
[1747460274396,4.01835165,2488.6,2488.4,9.25017283]
[1747460274710,11.77186235,2488.9,2488.4,7.755]
[1747460274921,7.754,2488.8,2488.3,17.351]
[1747460275209,4.01848503,2488.5,2488.4,7.756]
[1747460275815,4.01862772,2488.5,2488.4,7.756]
[1747460276104,4.01862772,2488.5,2488.3,17.351]
[1747460276270,4.01862772,2488.5,2488.4,7.756]
[1747460276671,4.01837338,2488.6,2488.4,7.756]
[1747460277287,4.01823917,2488.7,2488.4,7.756]
[1747460277618,4.01823917,2488.7,2488.3,17.351]
[1747460277797,4.01823917,2488.7,2488.5,7.756]
[1747460278416,4.01832355,2488.6,2488.5,7.756]
[1747460279428,4.01827574,2488.7,2488.5,7.756]
[1747460279719,4.01791008,2488.9,2488.5,7.756]
[1747460279923,4.01791008,2488.9,2488.6,0.7951]
[1747460280089,7.753,2488.8,2488.6,0.7951]
[1747460280286,4.01729105,2489.3,2488.8,4.01788679]
[1747460280485,11.77029105,2489.3,2488.9,0.7951]
[1747460280807,11.77029105,2489.3,2489.0,7.757]
[1747460281004,4.01736623,2489.2,2489.0,7.757]
[1747460281420,11.77022948,2489.3,2489.0,7.757]
[1747460282123,4.01702626,2489.5,2489.0,11.77464804]
[1747460282423,7.753,2489.5,2489.0,8.20240954]
[1747460282592,7.753,2489.5,2489.1,4.80859557]
[1747460282788,4.80590711,2489.8,2489.2,4.01727604]
[1747460282992,7.753,2489.7,2489.1,4.80853519]
[1747460283299,11.76957151,2489.7,2489.2,17.352]
[1747460283503,4.01719358,2489.3,2489.2,17.352]
[1747460283840,0.7895,2489.2,2488.5,18.6212863]
[1747460284014,4.01767778,2489.0,2488.9,7.756]
[1747460284726,7.752,2489.1,2488.6,7.756]
[1747460285026,4.01816209,2488.7,2488.6,7.756]
[1747460285826,4.01832355,2488.6,2488.5,17.8301863]
[1747460286009,11.77032355,2488.6,2488.5,25.5861863]
[1747460286322,7.752,2488.6,2488.5,25.107]
[1747460286827,11.77032355,2488.6,2488.5,25.107]
[1747460287128,7.752,2488.6,2488.5,25.107]
[1747460288407,7.752,2488.6,2488.3,0.7961]
[1747460288408,4.01864651,2488.4,2488.3,0.005]
[1747460288602,12.83584651,2488.4,2488.3,0.005]
[1747460288811,13.69297642,2488.4,2488.3,0.005]
[1747460289195,13.14297642,2488.4,2488.3,0.005]
[1747460289437,20.89497642,2488.4,2488.3,0.005]
[1747460289609,23.76226745,2488.4,2488.3,0.005]
[1747460289927,12.89497642,2488.4,2488.3,0.005]
[1747460290227,7.752,2488.4,2488.3,7.763]
[1747460290734,0.8172,2489.1,2488.5,4.01844845]
[1747460291034,0.8172,2489.1,2488.3,8.552]
[1747460291193,7.753,2489.3,2488.8,0.789]
[1747460291399,11.77012236,2489.4,2488.9,11.7758377]
[1747460291599,7.753,2489.4,2488.9,11.7758377]
[1747460292011,7.753,2489.5,2489.0,4.01767778]
[1747460292230,7.753,2489.5,2489.1,1.97296778]
[1747460292411,4.0171122,2489.4,2489.1,8.5534]
[1747460292609,4.0171122,2489.4,2489.2,7.758]
[1747460292816,7.753,2489.5,2489.2,7.758]
[1747460293198,7.753,2489.6,2489.2,11.77528693]
[1747460293404,7.753,2489.6,2489.2,7.758]
[1747460293604,7.753,2489.6,2489.2,9.01510368]
[1747460293805,11.76972427,2489.6,2489.2,9.01510368]
[1747460294106,4.01708465,2489.4,2489.3,7.757]
[1747460294307,4.01693574,2489.5,2489.3,7.757]
[1747460294944,4.01703221,2489.4,2489.3,7.757]
[1747460295438,4.01728315,2489.3,2488.8,18.1504]
[1747460295641,4.01735497,2489.2,2488.9,9.57204]
[1747460296013,4.01751154,2489.2,2489.0,7.751]
[1747460296241,7.751,2489.1,2489.0,7.751]
[1747460296431,4.01743742,2489.2,2489.0,7.751]
[1747460296631,7.751,2489.1,2489.0,7.751]
[1747460297341,7.751,2489.1,2488.5,0.4791863]
[1747460297342,4.01832355,2488.6,2488.5,0.4791863]
[1747460297538,11.77632355,2488.6,2488.5,0.4791863]
[1747460299548,11.77172456,2488.6,2488.5,0.4791863]
[1747460299912,4.01848503,2488.5,2488.4,7.751]
[1747460300955,4.01800064,2488.8,2488.4,7.751]
[1747460301153,7.752,2488.7,2488.4,9.00495022]
[1747460301443,7.752,2488.7,2488.3,0.005]
[1747460301610,7.752,2488.7,2488.4,7.752]
[1747460303038,4.01860157,2488.5,2488.4,7.752]
[1747460304653,11.77060157,2488.5,2488.4,7.752]
[1747460305523,7.752,2488.5,2488.4,7.752]
[1747460305757,0.7889,2489.4,2488.5,4.78924557]
[1747460306049,7.752,2489.0,2488.7,4.01804517]
[1747460306210,7.752,2489.1,2488.7,4.01804517]
[1747460306546,7.752,2489.1,2488.4,8.5277]
[1747460306746,2.96944725,2489.7,2488.9,4.78870502]
[1747460306747,4.01690891,2489.5,2488.9,4.78870502]
[1747460306917,4.01673825,2489.6,2489.0,7.752]
[1747460307249,7.752,2489.5,2489.0,7.752]
[1747460307417,4.01739949,2489.2,2489.0,7.752]
[1747460307614,4.01712119,2489.4,2489.0,7.752]
[1747460308246,7.752,2489.3,2489.0,9.00609003]
[1747460308450,7.752,2489.3,2489.0,13.02366566]
[1747460308842,4.01672595,2489.6,2489.1,4.01750881]
[1747460309051,7.752,2489.5,2489.1,4.01750881]
[1747460309234,11.76888746,2489.5,2489.0,13.02370147]
[1747460309570,7.752,2489.4,2489.1,1.37946015]
[1747460309936,7.752,2489.4,2489.1,1.76283754]
[1747460310263,4.01735497,2489.2,2489.1,0.38337739]
[1747460311426,4.01720031,2489.3,2489.0,7.752]
[1747460311427,4.01724902,2489.3,2489.0,7.752]
[1747460311633,4.01751637,2489.1,2489.0,7.752]
[1747460314655,0.7923,2489.5,2489.0,7.752]
[1747460314834,4.01728819,2489.3,2489.0,7.752]
[1747460315234,7.751,2489.2,2489.0,7.752]
[1747460316131,11.76840182,2489.2,2489.0,7.752]
[1747460318657,11.76840182,2489.2,2489.1,0.00527443]
[1747460320566,11.76840182,2489.2,2489.1,0.00101973]
[1747460321969,4.01740182,2489.2,2489.1,0.00101973]
[1747460322269,11.76840182,2489.2,2489.1,0.00101973]
[1747460322768,4.01682358,2489.6,2489.1,0.77431973]
[1747460322969,7.751,2489.2,2489.1,0.77431973]
[1747460323670,0.7561,2489.7,2489.1,0.77431973]
[1747460323972,7.751,2489.3,2489.1,0.77431973]
[1747460324569,4.01704698,2489.4,2489.1,0.77431973]
[1747460324878,7.751,2489.3,2489.1,0.77431973]
[1747460325070,4.0170425,2489.4,2489.1,0.77431973]
[1747460325375,7.751,2489.3,2489.1,0.77431973]
[1747460326386,4.01735497,2489.2,2489.1,0.00101973]
[1747460326876,7.75,2489.2,2489.1,0.00101973]
[1747460328900,1.07403366,2490.0,2489.2,4.81120735]
[1747460329183,4.01683971,2489.6,2489.2,0.7939]
[1747460329367,4.01670951,2489.6,2489.2,0.7939]
[1747460329571,4.01687609,2489.5,2489.2,0.7939]
[1747460329884,11.76687609,2489.5,2489.2,0.7939]
[1747460330085,11.76687609,2489.5,2489.3,0.38397004]
[1747460330690,4.01703221,2489.4,2489.3,0.38397004]
[1747460330891,4.01703221,2489.4,2489.3,8.13397004]
[1747460331099,5.67313304,2489.4,2489.3,8.13397004]
[1747460331986,5.67313304,2489.4,2489.3,7.75]
[1747460332968,7.749,2489.4,2489.3,7.75]
[1747460333159,4.01695394,2489.5,2489.3,7.75]
[1747460333490,4.78895417,2490.0,2489.5,4.01680082]
[1747460333696,4.01568641,2490.3,2489.8,4.80658243]
[1747460333957,4.01573066,2490.3,2489.9,7.75]
[1747460334109,3.09417578,2490.9,2490.0,18.1403]
[1747460334303,4.01520708,2490.6,2490.1,4.01588287]
[1747460334479,4.01520708,2490.6,2490.0,18.1403]
[1747460334665,4.01527745,2490.5,2490.0,22.15627457]
[1747460335802,7.749,2490.4,2490.1,0.3842892]
[1747460335997,7.749,2490.4,2490.2,7.749]
[1747460335998,8.92542775,2490.4,2490.2,7.749]
[1747460336199,4.0156667,2490.3,2490.2,7.749]
[1747460336397,4.0157417,2490.2,2490.1,0.3842892]
[1747460336907,4.01590297,2490.1,2490.0,17.8291863]
[1747460337207,5.22063411,2490.1,2490.0,17.8291863]
[1747460337402,5.21593705,2490.1,2490.0,17.8291863]
[1747460338209,5.21593705,2490.1,2490.0,17.35]
[1747460338605,4.01606425,2490.0,2489.9,7.749]
[1747460340328,4.78886425,2490.0,2489.9,7.749]
[1747460340475,5.66887127,2490.0,2489.9,7.749]
[1747460342576,4.01703221,2489.4,2489.3,18.1373]
[1747460342787,4.01695251,2489.5,2489.3,25.8853]
[1747460343482,11.76379479,2489.6,2489.3,25.8853]
[1747460343694,4.01701745,2489.5,2489.3,25.8853]
[1747460344414,4.01701745,2489.5,2489.3,25.095]
[1747460344415,4.01703221,2489.4,2489.3,25.095]
[1747460344574,4.01703221,2489.4,2489.3,7.748]
[1747460346485,5.67240394,2489.4,2489.3,7.748]
[1747460347822,4.01703221,2489.4,2489.3,7.748]
[1747460348005,7.747,2489.4,2489.3,7.748]
[1747460348513,11.76403221,2489.4,2489.3,7.748]
[1747460348944,0.7543,2489.9,2489.3,8.554]
[1747460349217,4.01668497,2489.7,2489.3,8.554]
[1747460350322,7.747,2489.6,2489.3,12.57115818]
[1747460350620,0.7543,2490.3,2489.5,0.806]
[1747460350830,4.01602758,2490.1,2489.6,4.01669339]
[1747460351127,7.747,2490.0,2489.7,4.01639632]
[1747460351301,7.747,2490.0,2489.8,7.749]
[1747460351821,11.76316193,2490.0,2489.8,7.749]
[1747460352216,4.01616193,2490.0,2489.8,7.749]
[1747460352518,11.76316193,2490.0,2489.8,7.749]
[1747460353536,4.01640252,2489.8,2489.5,18.154]
[1747460353708,4.01622555,2489.9,2489.6,7.748]
[1747460354005,4.01654817,2489.7,2489.6,7.748]
[1747460354807,4.01646603,2489.8,2489.6,7.748]
[1747460355339,4.01654817,2489.7,2489.6,7.748]
[1747460356345,4.0082958,2489.7,2489.6,7.748]
[1747460357143,4.8107653,2489.7,2489.6,7.748]
[1747460357437,4.01717408,2489.4,2489.2,0.4791863]
[1747460357637,0.789,2489.6,2489.2,0.4791863]
[1747460357638,11.76319358,2489.3,2489.2,0.4791863]
[1747460358646,7.746,2489.3,2489.2,0.4791863]
[1747460359043,7.746,2489.3,2489.1,7.74701973]
[1747460360241,4.01711151,2489.4,2489.1,7.74701973]
[1747460360446,7.746,2489.3,2489.1,7.74701973]
[1747460361107,11.7632216,2489.3,2489.1,7.74701973]
[1747460361307,4.01735497,2489.2,2489.1,7.74701973]
[1747460362442,4.01735497,2489.2,2489.1,0.00101973]
[1747460362648,4.01735497,2489.2,2489.1,7.747]
[1747460365250,11.76335497,2489.2,2489.1,7.747]
[1747460365649,11.76233524,2489.2,2489.1,7.747]
[1747460365847,12.54693524,2489.2,2489.1,7.747]
[1747460366163,4.01800064,2488.8,2488.7,7.747]
[1747460366327,4.80292355,2488.6,2488.3,0.64338303]
[1747460366654,15.21076316,2488.6,2488.3,0.64338303]
[1747460366953,13.03021591,2488.6,2488.3,0.64338303]
[1747460368656,21.32868784,2488.6,2488.3,0.64338303]
[1747460369150,23.53623509,2488.6,2488.3,0.64338303]
[1747460369458,4.83024651,2488.4,2488.3,0.005]
[1747460369746,8.04515215,2488.4,2488.3,0.005]
[1747460370759,16.04515215,2488.4,2488.3,0.005]
[1747460371745,4.01864651,2488.4,2488.3,0.005]
[1747460372056,11.76864651,2488.4,2488.3,0.005]
[1747460372749,0.7757,2488.9,2488.3,0.005]
[1747460373055,7.756,2488.8,2488.5,4.01838838]
[1747460373232,7.757,2488.8,2488.6,0.48248884]
[1747460373433,7.757,2488.8,2488.7,7.749]
[1747460373820,11.77259319,2489.1,2488.7,7.749]
[1747460374020,11.77259319,2489.1,2488.8,0.8065]
[1747460374754,4.01773292,2489.0,2488.8,0.8065]
[1747460375355,4.0121703,2489.0,2488.8,0.8065]
[1747460375560,4.01796653,2488.9,2488.6,0.48248884]
[1747460375730,4.01800064,2488.8,2488.6,7.749]
[1747460376853,4.01816209,2488.7,2488.6,7.749]
[1747460377267,4.01816209,2488.7,2488.5,7.749]
[1747460377564,7.748,2488.6,2488.5,7.749]
[1747460379274,11.76632355,2488.6,2488.5,7.749]
[1747460379444,4.01855383,2488.5,2488.3,0.005]
[1747460379641,4.01855383,2488.5,2488.4,7.749]